fUSD/lending_fUSD_20240503
["ID","MTS","AMOUNT","RATE_DAILY","PERIOD"]
[325350289,1714746659155,-500.0,0.00044109,31]
[325350290,1714746659166,-500.0,0.00044109,31]
[325350291,1714746659178,-500.0,0.00044109,31]
[325350292,1714746659188,-1783.81,0.00044109,31]
[325350293,1714746659198,-851.49,0.00044109,31]
[325350294,1714746659207,-1513.69,0.00044109,31]
[325350295,1714746659217,-946.34,0.00044109,31]
[325350296,1714746659227,-924.79,0.00044109,31]
[325350297,1714746659241,-1091.37,0.00044109,7]
[325350298,1714746659251,-648.29,0.00044109,31]
[325350299,1714746659261,-500.0,0.00044109,31]
[325350300,1714746659271,-500.0,0.00044109,31]
[325350301,1714746659283,-1098.97,0.00044109,31]
[325350302,1714746659294,-500.0,0.00044109,31]
[325350303,1714746659304,-444.5070532,0.00044109,31]
[325350304,1714746659314,-500.0,0.00044109,31]
[325350305,1714746659326,-1607.8,0.00044109,31]
[325350306,1714746659336,-2082.47,0.00044109,31]
[325350307,1714746659346,-1815.33,0.00044109,31]
[325350308,1714746659357,-1513.58,0.00044109,31]
[325350309,1714746659367,-500.0,0.00044109,31]
[325350310,1714746659378,-500.0,0.00044109,31]
[325350311,1714746659388,-1132.76,0.00044109,31]
[325350312,1714746659398,-1358.0,0.00044109,31]
[325350313,1714746659408,-676.74,0.00044109,31]
[325350314,1714746659418,-500.0,0.00044109,31]
[325350315,1714746659430,-500.0,0.00044109,31]
[325350316,1714746659440,-606.58,0.00044109,31]
[325350317,1714746659451,-2050.03,0.00044109,31]
[325350318,1714746659460,-1203.2,0.00044109,31]
[325350319,1714746659470,-869.59,0.00044109,31]
[325350320,1714746659480,-500.0,0.00044109,31]
[325350321,1714746659491,-500.0,0.00044109,31]
[325350322,1714746659501,-500.0,0.00044109,31]
[325350323,1714746659511,-500.0,0.00044109,31]
[325350324,1714746659521,-536.02,0.00044109,31]
[325350325,1714746659531,-777.95,0.00044109,31]
[325350326,1714746659542,-500.0,0.00044109,31]
[325350327,1714746659552,-1008.8,0.00044109,31]
[325350328,1714746659562,-500.0,0.00044109,31]
[325350329,1714746659572,-500.0,0.00044109,31]
[325350330,1714746659582,-500.0,0.00044109,31]
[325350331,1714746659591,-500.0,0.00044109,31]
[325350332,1714746659601,-1301.52,0.00044109,31]
[325350333,1714746659611,-997.14,0.00044109,31]
[325350334,1714746659620,-795.24,0.00044109,31]
[325350335,1714746659630,-1667.27,0.00044109,31]
[325350336,1714746659640,-500.0,0.00044109,31]
[325350337,1714746659650,-2912.02,0.00044109,31]
[325350338,1714746659659,-500.0,0.00044109,31]
[325350339,1714746659669,-500.0,0.00044109,31]
[325350340,1714746659680,-834.7,0.00044109,31]
[325350341,1714746659690,-1742.03,0.00044109,31]
[325350342,1714746659699,-504.8825637,0.00044109,31]
[325350343,1714746659709,-500.0,0.00044109,31]
[325350344,1714746659719,-500.0,0.00044109,31]
[325350345,1714746659730,-515.38,0.00044109,31]
[325350346,1714746659741,-918.5,0.00044109,31]
[325350347,1714746659751,-500.0,0.00044109,31]
[325350348,1714746659762,-500.0,0.00044109,31]
[325350349,1714746659772,-1591.37,0.00044109,31]
[325350350,1714746659783,-500.0,0.00044109,31]
[325350351,1714746659793,-500.0,0.00044109,31]
[325350352,1714746659803,-500.0,0.00044109,31]
[325350353,1714746659813,-907.43,0.00044109,31]
[325350354,1714746659823,-1922.92,0.00044109,31]
[325350355,1714746659833,-510.51,0.00044109,31]
[325350356,1714746659844,-1589.24,0.00044109,31]
[325350357,1714746659854,-1861.31,0.00044109,31]
[325350358,1714746659864,-1091.24,0.00044109,31]
[325350359,1714746659875,-500.0,0.00044109,31]
[325350360,1714746659885,-680.51,0.00044109,31]
[325350361,1714746659895,-1637.34,0.00044109,31]
[325350362,1714746659906,-2206.34,0.00044109,31]
[325350363,1714746659917,-2248.26,0.00044109,31]
[325350364,1714746659929,-584.39,0.00044109,2]
[325350365,1714746659939,-500.0,0.00044109,31]
[325350366,1714746659949,-500.0,0.00044109,31]
[325350367,1714746659959,-500.0,0.00044109,31]
[325350368,1714746659969,-438.81192951,0.00044109,31]
[325350369,1714746659980,-1066.92,0.00044109,31]
[325350370,1714746659990,-500.0,0.00044109,31]
[325350371,1714746660001,-554.61,0.00044109,31]
[325350372,1714746660011,-3127.52,0.00044109,31]
[325350373,1714746660021,-2462.7,0.00044109,31]
[325350374,1714746660032,-954.7,0.00044109,31]
[325350375,1714746660042,-500.0,0.00044109,31]
[325350376,1714746660053,-528.52929671,0.00044109,31]
[325350377,1714746660063,-500.0,0.00044109,31]
[325350378,1714746660073,-500.0,0.00044109,31]
[325350379,1714746660084,-500.0,0.00044109,31]
[325350380,1714746660094,-1325.46,0.00044109,31]
[325350381,1714746660105,-501.32,0.00044109,31]
[325350382,1714746660115,-504.2856754,0.00044109,31]
[325350383,1714746660125,-2892.15,0.00044109,31]
[325350384,1714746660135,-500.0,0.00044109,31]
[325350385,1714746660146,-500.0,0.00044109,31]
[325350386,1714746660156,-1152.37,0.00044109,31]
[325350387,1714746660167,-1510.35,0.00044109,31]
[325350388,1714746660178,-505.57839912,0.00044109,31]
[325350389,1714746660188,-500.0,0.00044109,31]
[325350390,1714746660198,-500.0,0.00044109,31]
[325350391,1714746660209,-300.0,0.00044109,7]
[325350392,1714746660218,-1265.08,0.00044109,31]
[325350393,1714746660228,-500.0,0.00044109,31]
[325350394,1714746660239,-1251.98,0.00044109,31]
[325350395,1714746660253,-1096.1,0.00044109,31]
[325350396,1714746660263,-2527.88,0.00044109,31]
[325350397,1714746660273,-1163.8,0.00044109,2]
[325350398,1714746660283,-526.23,0.00044109,31]
[325350399,1714746660294,-500.0,0.00044109,31]
[325350400,1714746660304,-500.0,0.00044109,31]
[325350401,1714746660314,-500.0,0.00044109,31]
[325350402,1714746660325,-500.0,0.00044109,31]
[325350403,1714746660335,-1040.83,0.00044109,31]
[325350404,1714746660344,-500.0,0.00044109,31]
[325350405,1714746660572,-844.73,0.00044109,31]
[325350406,1714746660604,-943.84,0.00044109,31]
[325350407,1714746660614,-594.61,0.00044109,31]
[325350408,1714746660625,-500.0,0.00044109,31]
[325350409,1714746660634,-695.37,0.00044109,31]
[325350410,1714746660644,-1282.37,0.00044109,31]
[325350411,1714746660654,-2730.14,0.00044109,31]
[325350412,1714746660663,-1762.26,0.00044109,31]
[325350413,1714746660672,-500.0,0.00044109,31]
[325350414,1714746660682,-565.57,0.00044109,31]
[325350415,1714746660691,-1747.07,0.00044109,31]
[325350416,1714746660701,-670.0,0.00044109,31]
[325350417,1714746660710,-500.0,0.00044109,31]
[325350418,1714746660719,-500.0,0.00044109,31]
[325350419,1714746660729,-861.2,0.00044109,31]
[325350420,1714746660738,-1079.96,0.00044109,31]
[325350421,1714746660747,-500.0,0.00044109,31]
[325350422,1714746660757,-1833.76,0.00044109,31]
[325350423,1714746660766,-509.94414267,0.00044109,31]
[325350424,1714746660775,-772.84,0.00044109,31]
[325350425,1714746660785,-669.74,0.00044109,31]
[325350426,1714746660794,-500.0,0.00044109,31]
[325350427,1714746660805,-506.98375843,0.00044109,2]
[325350428,1714746660814,-986.21,0.00044109,31]
[325350429,1714746660824,-500.0,0.00044109,31]
[325350430,1714746660833,-1177.96,0.00044109,31]
[325350431,1714746660843,-500.0,0.00044109,2]
[325350432,1714746660852,-500.0,0.00044109,31]
[325350433,1714746660861,-779.11,0.00044109,31]
[325350434,1714746660870,-500.0,0.00044109,31]
[325350435,1714746660881,-1377.21,0.00044109,31]
[325350436,1714746660891,-3010.68,0.00044109,31]
[325350437,1714746660900,-1149.11,0.00044109,31]
[325350438,1714746660910,-927.97,0.00044109,31]
[325350439,1714746660920,-1689.11,0.00044109,31]
[325350440,1714746660931,-2105.3,0.00044109,31]
[325350441,1714746660941,-500.0,0.00044109,31]
[325350442,1714746660950,-539.96,0.00044109,31]
[325350443,1714746660960,-595.56,0.00044109,31]
[325350444,1714746660969,-500.0,0.00044109,31]
[325350445,1714746660979,-619.57,0.00044109,31]
[325350446,1714746660988,-500.0,0.00044109,31]
[325350447,1714746660998,-773.57,0.00044109,31]
[325350448,1714746661007,-1252.96,0.00044109,31]
[325350449,1714746661016,-408.99,0.00044109,31]
[325350450,1714746661025,-1835.84,0.00044109,31]
[325350451,1714746661035,-548.76,0.00044109,31]
[325350452,1714746661044,-632.04,0.00044109,31]
[325350453,1714746661053,-1000.08,0.00044109,31]
[325350454,1714746661063,-3071.93,0.00044109,31]
[325350455,1714746661072,-500.0,0.00044109,31]
[325350456,1714746661082,-500.0,0.00044109,31]
[325350457,1714746661092,-1508.4,0.00044109,31]
[325350458,1714746661102,-500.0,0.00044109,31]
[325350459,1714746661112,-1117.0,0.00044109,31]
[325350460,1714746661121,-500.0,0.00044109,31]
[325350461,1714746661131,-500.0,0.00044109,31]
[325350462,1714746661140,-296.95629242,0.00044109,15]
[325350463,1714746661150,-691.24,0.00044109,31]
[325350464,1714746661160,-1519.12,0.00044109,31]
[325350465,1714746661169,-1741.6,0.00044109,31]
[325350466,1714746661181,-1841.09,0.00044109,31]
[325350467,1714746661190,-500.0,0.00044109,31]
[325350468,1714746661200,-1192.32,0.00044109,31]
[325350469,1714746661210,-500.0,0.00044109,31]
[325350470,1714746661220,-380.90019797,0.00044109,31]
[325350471,1714746661230,-500.0,0.00044109,31]
[325350472,1714746661245,-1506.6,0.00044109,31]
[325350473,1714746661255,-1289.45,0.00044109,31]
[325350474,1714746661265,-500.0,0.00044109,31]
[325350475,1714746661274,-1038.43,0.00044109,31]
[325350476,1714746661285,-500.0,0.00044109,31]
[325350477,1714746661295,-500.0,0.00044109,31]
[325350478,1714746661304,-500.0,0.00044109,31]
[325350479,1714746661316,-500.0,0.00044109,31]
[325350480,1714746661326,-765.35,0.00044109,31]
[325350481,1714746661336,-1053.19,0.00044109,31]
[325350482,1714746661345,-2596.94,0.00044109,10]
[325350483,1714746661355,-500.0,0.00044109,31]
[325350484,1714746661364,-1713.0,0.00044109,31]
[325350485,1714746661374,-500.0,0.00044109,31]
[325350486,1714746661384,-1196.68,0.00044109,31]
[325350487,1714746661394,-520.25,0.00044109,31]
[325350488,1714746661403,-530.97,0.00044109,31]
[325350489,1714746661414,-1512.32,0.00044109,31]
[325350490,1714746661424,-500.0,0.00044109,31]
[325350491,1714746661435,-500.0,0.00044109,31]
[325350492,1714746661445,-614.73,0.00044109,31]
[325350493,1714746661455,-767.38,0.00044109,31]
[325350494,1714746661464,-2049.33,0.00044109,31]
[325350495,1714746661473,-500.0,0.00044109,31]
[325350496,1714746661483,-500.0,0.00044109,31]
[325350497,1714746661492,-1448.03,0.00044109,31]
[325350498,1714746661501,-303.80133822,0.00044109,31]
[325350499,1714746661511,-1279.38,0.00044109,31]
[325350500,1714746661521,-500.0,0.00044109,31]
[325350501,1714746661531,-500.0,0.00044109,31]
[325350502,1714746661540,-1508.95,0.00044109,31]
[325350503,1714746661549,-500.0,0.00044109,31]
[325350504,1714746661559,-2414.27,0.00044109,31]
[325350505,1714746661568,-500.0,0.00044109,31]
[325350506,1714746661578,-500.0,0.00044109,31]
[325350507,1714746661588,-511.85308546,0.00044109,31]
[325350508,1714746661597,-1281.05,0.00044109,31]
[325350509,1714746661607,-2804.83,0.00044109,2]
[325350510,1714746661617,-785.84,0.00044109,31]
[325350511,1714746661627,-500.0,0.00044109,31]
[325350512,1714746661636,-500.0,0.00044109,31]
[325350513,1714746661646,-500.0,0.00044109,31]
[325350514,1714746661655,-1300.51,0.00044109,31]
[325350515,1714746661665,-500.0,0.00044109,31]
[325350516,1714746661674,-500.0,0.00044109,31]
[325350517,1714746661687,-1419.96,0.00044109,31]
[325350518,1714746661696,-500.0,0.00044109,31]
[325350519,1714746661705,-500.0,0.00044109,31]
[325350520,1714746661715,-2095.85,0.00044109,31]
[325350521,1714746661724,-500.0,0.00044109,31]
[325350522,1714746661733,-502.9177361,0.00044109,31]
[325350523,1714746661743,-798.1,0.00044109,31]
[325350524,1714746661754,-500.0,0.00044109,31]
[325350525,1714746661764,-500.0,0.00044109,31]
[325350526,1714746661775,-4130.2,0.00044109,31]
[325350527,1714746661785,-500.0,0.00044109,31]
[325350528,1714746661795,-500.0,0.00044109,31]
[325350529,1714746661807,-501.97017569,0.00044109,31]
[325350530,1714746661817,-533.39,0.00044109,31]
[325350531,1714746661826,-1527.63,0.00044109,31]
[325350532,1714746661836,-500.0,0.00044109,31]
[325350533,1714746661846,-500.0,0.00044109,31]
[325350534,1714746661855,-503.3,0.00044109,31]
[325350535,1714746661865,-613.74716133,0.00044109,31]
[325350536,1714746661875,-500.0,0.00044109,31]
[325350537,1714746661885,-500.0,0.00044109,31]
[325350538,1714746661895,-500.0,0.00044109,31]
[325350539,1714746661904,-1026.61,0.00044109,31]
[325350540,1714746661914,-500.0,0.00044109,31]
[325350541,1714746661923,-1680.25,0.00044109,31]
[325350542,1714746661937,-1248.76,0.00044109,31]
[325350543,1714746661947,-1754.66,0.00044109,31]
[325350544,1714746661956,-1088.42,0.00044109,31]
[325350545,1714746661966,-816.08,0.00044109,31]
[325350546,1714746661976,-551.82040216,0.00044109,31]
[325350547,1714746661987,-500.0,0.00044109,31]
[325350548,1714746661998,-626.08,0.00044109,31]
[325350549,1714746662008,-500.0,0.00044109,31]
[325350550,1714746662018,-604.71,0.00044109,31]
[325350551,1714746662028,-1484.42,0.00044109,31]
[325350552,1714746662039,-500.0,0.00044109,31]
[325350553,1714746662049,-500.0,0.00044109,31]
[325350554,1714746662059,-2466.43,0.00044109,31]
[325350555,1714746662069,-500.0,0.00044109,31]
[325350556,1714746662079,-1243.84,0.00044109,31]
[325350557,1714746662089,-2917.56,0.00044109,31]
[325350558,1714746662098,-488.38,0.00044109,31]
[325350559,1714746662108,-500.0,0.00044109,31]
[325350560,1714746662118,-500.0,0.00044109,31]
[325350561,1714746662127,-500.0,0.00044109,31]
[325350562,1714746662137,-500.0,0.00044109,31]
[325350563,1714746662147,-500.0,0.00044109,31]
[325350564,1714746662157,-500.0,0.00044109,31]
[325350565,1714746662166,-666.96,0.00044109,31]
[325350566,1714746662176,-2990.02,0.00044109,31]
[325350567,1714746662192,-1546.33,0.00044109,31]
[325350568,1714746662202,-743.67,0.00044109,31]
[325350569,1714746662211,-1568.11,0.00044109,30]
[325350570,1714746662220,-527.61,0.00044109,31]
[325350571,1714746662232,-2248.08,0.00044109,31]
[325350572,1714746662242,-500.0,0.00044109,31]
[325350573,1714746662256,-500.0,0.00044109,31]
[325350574,1714746662266,-1825.81,0.00044109,31]
[325350575,1714746662275,-714.99,0.00044109,31]
[325350576,1714746662286,-551.77,0.00044109,31]
[325350577,1714746662295,-1083.3,0.00044109,31]
[325350578,1714746662305,-1678.8,0.00044109,31]
[325350579,1714746662314,-557.4,0.00044109,31]
[325350580,1714746662328,-500.0,0.00044109,31]
[325350581,1714746662337,-1321.39,0.00044109,31]
[325350582,1714746662347,-502.17511533,0.00044109,31]
[325350583,1714746662356,-1760.61,0.00044109,31]
[325350584,1714746662365,-500.0,0.00044109,2]
[325350585,1714746662375,-1660.3,0.00044109,31]
[325350586,1714746662384,-500.0,0.00044109,31]
[325350587,1714746662394,-500.0,0.00044109,31]
[325350588,1714746662403,-500.0,0.00044109,31]
[325350589,1714746662413,-500.0,0.00044109,31]
[325350590,1714746662422,-689.28,0.00044109,31]
[325350591,1714746662435,-179.82883418,0.00044109,31]
[325350592,1714746662444,-500.0,0.00044109,31]
[325350593,1714746662454,-500.0,0.00044109,31]
[325350594,1714746662463,-500.0,0.00044109,31]
[325350595,1714746662472,-521.94,0.00044109,31]
[325350596,1714746662482,-1335.29,0.00044109,31]
[325350597,1714746662491,-563.94,0.00044109,31]
[325350598,1714746662501,-500.0,0.00044109,31]
[325350599,1714746662510,-500.0,0.00044109,31]
[325350600,1714746662520,-500.0,0.00044109,31]
[325350601,1714746662529,-500.0,0.00044109,31]
[325350602,1714746662539,-500.0,0.00044109,31]
[325350603,1714746662548,-642.25,0.00044109,31]
[325350604,1714746662557,-1950.2,0.00044109,31]
[325350605,1714746662567,-1457.02,0.00044109,31]
[325350606,1714746662576,-500.0,0.00044109,31]
[325350607,1714746662585,-500.0,0.00044109,31]
[325350608,1714746662595,-500.0,0.00044109,31]
[325350609,1714746662605,-1029.54,0.00044109,31]
[325350610,1714746662614,-1136.49,0.00044109,31]
[325350611,1714746662624,-1685.2,0.00044109,31]
[325350612,1714746662633,-500.0,0.00044109,31]
[325350613,1714746662643,-1121.46,0.00044109,31]
[325350614,1714746662652,-1018.24,0.00044109,31]
[325350615,1714746662662,-500.0,0.00044109,31]
[325350616,1714746662671,-1747.57,0.00044109,31]
[325350617,1714746662683,-1473.01,0.00044109,31]
[325350618,1714746662692,-2447.31,0.00044109,31]
[325350619,1714746662701,-179.72192718,0.00044109,31]
[325350620,1714746662711,-500.0,0.00044109,31]
[325350621,1714746662720,-1478.31,0.00044109,31]
[325350622,1714746662730,-500.0,0.00044109,31]
[325350623,1714746662739,-3130.3,0.00044109,31]
[325350624,1714746662749,-500.0,0.00044109,31]
[325350625,1714746662758,-750.0,0.00044109,30]
[325350626,1714746662767,-500.0,0.00044109,31]
[325350627,1714746662776,-500.0,0.00044109,31]
[325350628,1714746662785,-405.39964598,0.00044109,31]
[325350629,1714746662795,-1148.07,0.00044109,31]
[325350630,1714746662804,-500.0,0.00044109,31]
[325350631,1714746662814,-241.17212911,0.00044109,31]
[325350632,1714746662823,-499.9928231,0.00044109,31]
[325350633,1714746662833,-787.53,0.00044109,31]
[325350634,1714746662843,-500.0,0.00044109,31]
[325350635,1714746662852,-500.0,0.00044109,31]
[325350636,1714746662862,-486.89200308,0.00044109,31]
[325350637,1714746662872,-500.0,0.00044109,31]
[325350638,1714746662882,-500.0,0.00044109,30]
[325350639,1714746662892,-741.62,0.00044109,31]
[325350640,1714746662901,-2071.43,0.00044109,31]
[325350641,1714746662911,-500.0,0.00044109,31]
[325350642,1714746663006,-703.79,0.00044109,31]
[325350643,1714746663017,-597.33,0.00044109,31]
[325350644,1714746663026,-650.58,0.00044109,31]
[325350645,1714746663035,-1491.71,0.00044109,31]
[325350646,1714746663045,-1917.92,0.00044109,31]
[325350647,1714746663060,-500.0,0.00044109,31]
[325350648,1714746663069,-500.0,0.00044109,31]
[325350649,1714746663078,-500.0,0.00044109,31]
[325350650,1714746663088,-1119.34,0.00044109,31]
[325350651,1714746663097,-500.0,0.00044109,31]
[325350652,1714746663107,-500.0,0.00044109,31]
[325350653,1714746663116,-1257.22,0.00044109,31]
[325350654,1714746663126,-500.0,0.00044109,31]
[325350655,1714746663135,-3365.56,0.00044109,31]
[325350656,1714746663147,-500.0,0.00044109,31]
[325350657,1714746663157,-500.0,0.00044109,31]
[325350658,1714746663166,-500.0,0.00044109,31]
[325350659,1714746663175,-541.7,0.00044109,31]
[325350660,1714746663186,-758.52,0.00044109,31]
[325350661,1714746663195,-823.1,0.00044109,31]
[325350662,1714746663204,-778.01,0.00044109,31]
[325350663,1714746663213,-500.0,0.00044109,31]
[325350664,1714746663223,-500.0,0.00044109,31]
[325350665,1714746663233,-786.98,0.00044109,31]
[325350666,1714746663244,-784.51,0.00044109,31]
[325350667,1714746663258,-500.0,0.00044109,31]
[325350668,1714746663268,-500.0,0.00044109,31]
[325350669,1714746663280,-685.46,0.00044109,31]
[325350670,1714746663289,-500.0,0.00044109,31]
[325350671,1714746663298,-1468.01,0.00044109,31]
[325350672,1714746663307,-1070.78,0.00044109,31]
[325350673,1714746663316,-500.0,0.00044109,31]
[325350674,1714746663327,-642.68,0.00044109,31]
[325350675,1714746663338,-500.0,0.00044109,31]
[325350676,1714746663348,-3502.16,0.00044109,31]
[325350677,1714746663357,-500.0,0.00044109,31]
[325350678,1714746663367,-500.0,0.00044109,31]
[325350679,1714746663376,-914.69,0.00044109,31]
[325350680,1714746663385,-571.99,0.00044109,31]
[325350681,1714746663394,-622.24,0.00044109,31]
[325350682,1714746663404,-500.0,0.00044109,31]
[325350683,1714746663413,-787.31,0.00044109,31]
[325350684,1714746663422,-712.64,0.00044109,31]
[325350685,1714746663434,-1706.59,0.00044109,31]
[325350686,1714746663443,-500.0,0.00044109,31]
[325350687,1714746663452,-629.74,0.00044109,31]
[325350688,1714746663461,-1885.92,0.00044109,31]
[325350689,1714746663471,-500.0,0.00044109,31]
[325350690,1714746663480,-500.0,0.00044109,31]
[325350691,1714746663490,-632.2230023,0.00044109,31]
[325350692,1714746663499,-500.0,0.00044109,31]
[325350693,1714746663508,-628.89,0.00044109,31]
[325350694,1714746663518,-500.0,0.00044109,31]
[325350695,1714746663527,-1595.77,0.00044109,31]
[325350696,1714746663536,-977.33,0.00044109,31]
[325350697,1714746663545,-500.0,0.00044109,31]
[325350698,1714746663554,-1305.85,0.00044109,31]
[325350699,1714746663563,-602.81,0.00044109,31]
[325350700,1714746663574,-500.0,0.00044109,31]
[325350701,1714746663583,-828.61,0.00044109,31]
[325350702,1714746663592,-500.0,0.00044109,31]
[325350703,1714746663601,-500.0,0.00044109,31]
[325350704,1714746663611,-506.88,0.00044109,31]
[325350705,1714746663620,-500.0,0.00044109,31]
[325350706,1714746663629,-539.84,0.00044109,31]
[325350707,1714746663639,-500.0,0.00044109,31]
[325350708,1714746663649,-1339.93,0.00044109,31]
[325350709,1714746663658,-500.0,0.00044109,31]
[325350710,1714746663667,-1652.48,0.00044109,31]
[325350711,1714746663676,-500.0,0.00044109,31]
[325350712,1714746663687,-2384.39,0.00044109,31]
[325350713,1714746663696,-500.0,0.00044109,31]
[325350714,1714746663705,-538.03,0.00044109,31]
[325350715,1714746663715,-1565.01,0.00044109,31]
[325350716,1714746663724,-520.13,0.00044109,31]
[325350717,1714746663733,-533.96,0.00044109,31]
[325350718,1714746663742,-1232.08,0.00044109,31]
[325350719,1714746663752,-500.0,0.00044109,31]
[325350720,1714746663762,-500.0,0.00044109,31]
[325350721,1714746663771,-1695.37,0.00044109,31]
[325350722,1714746663780,-500.0,0.00044109,31]
[325350723,1714746663789,-500.0,0.00044109,31]
[325350724,1714746663798,-974.96,0.00044109,31]
[325350725,1714746663807,-500.0,0.00044109,31]
[325350726,1714746663816,-961.82,0.00044109,31]
[325350727,1714746663825,-500.0,0.00044109,31]
[325350728,1714746663834,-500.0,0.00044109,31]
[325350729,1714746663843,-907.45,0.00044109,31]
[325350730,1714746663853,-1065.06,0.00044109,31]
[325350731,1714746663862,-1616.55,0.00044109,31]
[325350732,1714746663873,-1312.35,0.00044109,31]
[325350733,1714746663882,-500.0,0.00044109,31]
[325350734,1714746663891,-500.0,0.00044109,31]
[325350735,1714746663901,-4189.61,0.00044109,31]
[325350736,1714746663910,-670.89,0.00044109,31]
[325350737,1714746663919,-1694.36,0.00044109,31]
[325350738,1714746663928,-500.0,0.00044109,31]
[325350739,1714746663939,-1114.27,0.00044109,31]
[325350740,1714746663948,-500.0,0.00044109,31]
[325350741,1714746663958,-500.0,0.00044109,31]
[325350742,1714746663967,-1257.48,0.00044109,31]
[325350743,1714746663976,-500.0,0.00044109,31]
[325350744,1714746663986,-500.0,0.00044109,31]
[325350745,1714746663995,-813.59,0.00044109,31]
[325350746,1714746664004,-972.04,0.00044109,31]
[325350747,1714746664013,-1434.6,0.00044109,31]
[325350748,1714746664022,-500.0,0.00044109,31]
[325350749,1714746664031,-589.98,0.00044109,31]
[325350750,1714746664041,-500.0,0.00044109,31]
[325350751,1714746664050,-507.78864031,0.00044109,31]
[325350752,1714746664059,-500.0,0.00044109,31]
[325350753,1714746664068,-1514.15,0.00044109,31]
[325350754,1714746664078,-5280.52,0.00044109,31]
[325350755,1714746664087,-500.0,0.00044109,31]
[325350756,1714746664096,-1507.48,0.00044109,31]
[325350757,1714746664105,-2112.57,0.00044109,31]
[325350758,1714746664115,-500.0,0.00044109,31]
[325350759,1714746664124,-500.0,0.00044109,31]
[325350760,1714746664133,-792.33,0.00044109,31]
[325350761,1714746664142,-500.0,0.00044109,31]
[325350762,1714746664152,-680.12,0.00044109,31]
[325350763,1714746664160,-1750.33,0.00044109,31]
[325350764,1714746664169,-2705.03,0.00044109,31]
[325350765,1714746664178,-500.0,0.00044109,31]
[325350766,1714746664188,-1208.2,0.00044109,31]
[325350767,1714746664197,-500.0,0.00044109,31]
[325350768,1714746664206,-500.0,0.00044109,31]
[325350769,1714746664215,-500.0,0.00044109,31]
[325350770,1714746664224,-500.0,0.00044109,31]
[325350771,1714746664234,-767.38,0.00044109,31]
[325350772,1714746664247,-500.0,0.00044109,31]
[325350773,1714746664258,-500.0,0.00044109,31]
[325350774,1714746664267,-500.0,0.00044109,31]
[325350775,1714746664275,-37367.74,0.00044109,31]
[325350776,1714746664286,-500.0,0.00044109,31]
[325350777,1714746664296,-500.0,0.00044109,31]
[325350778,1714746664306,-500.0,0.00044109,31]
[325350779,1714746664317,-6226.16,0.00044109,31]
[325350780,1714746664327,-2034.22,0.00044109,31]
[325350781,1714746664336,-508.54,0.00044109,31]
[325350782,1714746664346,-864.76,0.00044109,31]
[325350783,1714746664355,-500.0,0.00044109,31]
[325350784,1714746664364,-8107.87,0.00044109,31]
[325350785,1714746664373,-500.0,0.00044109,31]
[325350786,1714746664382,-500.0,0.00044109,31]
[325350787,1714746664392,-500.0,0.00044109,31]
[325350788,1714746664401,-602.13300486,0.00044109,31]